bitfinex/quotes_BTCUSD_20240803
["timestamp","ask_amount","ask_price","bid_price","bid_amount"]
[1722706184160,1.39266338,60834.0,60833.0,0.14190909]
[1722706184394,1.39266338,60834.0,60833.0,0.14290909]
[1722706184395,0.80744114,60834.0,60833.0,0.14290909]
[1722706184614,0.74694114,60834.0,60833.0,0.14290909]
[1722706184824,0.33397814,60834.0,60833.0,0.14190909]
[1722706185272,0.007,60834.0,60833.0,0.14290909]
[1722706185477,0.171381,60834.0,60833.0,0.15280794]
[1722706186604,0.500144,60834.0,60833.0,0.15280794]
[1722706186824,0.007,60834.0,60833.0,0.14290909]
[1722706187255,0.007,60834.0,60833.0,0.15280794]
[1722706187697,0.007,60834.0,60833.0,0.15180794]
[1722706187952,0.006,60834.0,60833.0,0.15180794]
[1722706188615,0.164344,60848.0,60841.0,0.16436]
[1722706188828,0.164344,60848.0,60833.0,0.22160794]
[1722706188829,0.164349,60846.0,60833.0,0.22160794]
[1722706189037,0.328677,60850.0,60834.0,0.351758]
[1722706189216,0.164348,60847.0,60840.0,0.164364]
[1722706189453,0.164347,60847.0,60840.0,0.164364]
[1722706189669,0.328688,60848.0,60841.0,0.00986351]
[1722706189877,0.164349,60846.0,60841.0,0.00986351]
[1722706190354,0.328693,60847.0,60838.0,0.328738]
[1722706190565,0.16435,60846.0,60842.0,0.00985909]
[1722706190771,0.164357,60843.0,60842.0,0.00985909]
[1722706190982,0.164353,60845.0,60841.0,0.001]
[1722706191199,0.1671005,60851.0,60840.0,0.003]
[1722706191407,0.164356,60844.0,60842.0,0.00985909]
[1722706191617,0.16435,60846.0,60841.0,0.00986351]
[1722706191826,0.16435,60846.0,60843.0,0.00985468]
[1722706192036,0.16435,60846.0,60840.0,0.003]
[1722706192037,0.17078284,60845.0,60842.0,0.00985909]
[1722706192278,0.328691,60848.0,60844.0,0.00985026]
[1722706192482,0.164354,60844.0,60843.0,0.00985468]
[1722706192691,0.165353,60845.0,60838.0,0.16437]
[1722706193122,0.165353,60845.0,60835.0,0.164378]
[1722706193123,0.164363,60841.0,60835.0,0.164378]
[1722706193362,0.328715,60843.0,60834.0,0.328762]
[1722706193585,0.001,60845.0,60833.0,0.18870909]
[1722706193836,0.003,60846.0,60837.0,0.328745]
[1722706194045,0.001,60846.0,60840.0,0.164364]
[1722706194251,0.165349,60846.0,60840.0,0.164364]
[1722706194464,0.1453,60850.0,60833.0,0.18870909]
[1722706194676,0.1453,60858.0,60842.0,0.328717]
[1722706194891,0.17076398,60857.0,60843.0,0.07408679]
[1722706195126,0.17076398,60857.0,60845.0,0.328702]
[1722706195336,0.17076398,60857.0,60848.0,0.164342]
[1722706195542,0.164325,60855.0,60849.0,0.16434]
[1722706195749,0.328647,60856.0,60846.0,0.164348]
[1722706195971,0.164331,60853.0,60846.0,0.164348]
[1722706196184,0.164331,60853.0,60845.0,0.328702]
[1722706196420,0.164331,60853.0,60847.0,0.164346]
[1722706196629,0.32866,60854.0,60843.0,0.0708]
[1722706196841,0.164328,60854.0,60847.0,0.164345]
[1722706197053,0.164328,60854.0,60848.0,0.164343]
[1722706197262,0.001,60857.0,60847.0,0.328692]
[1722706197263,0.164325,60855.0,60847.0,0.328692]
[1722706197476,0.32964,60857.0,60846.0,0.328698]
[1722706197477,0.164328,60854.0,60846.0,0.328698]
[1722706197706,0.164328,60854.0,60848.0,0.164342]
[1722706197920,0.164335,60852.0,60845.0,0.164351]
[1722706198132,0.15532038,60858.0,60847.0,0.164345]
[1722706198133,0.164328,60854.0,60847.0,0.164345]
[1722706198338,0.164328,60854.0,60848.0,0.164343]
[1722706198788,0.15532038,60858.0,60853.0,0.164329]
[1722706198789,0.01002038,60858.0,60853.0,0.164329]
[1722706198995,0.164318,60858.0,60851.0,0.164334]
[1722706199204,0.16432,60857.0,60850.0,0.164338]
[1722706199414,0.328625,60860.0,60846.0,0.002]
[1722706199415,0.005,60852.0,60846.0,0.330695]
[1722706199866,0.005,60852.0,60848.0,0.166342]
[1722706200078,0.164325,60855.0,60848.0,0.164343]
[1722706200338,0.065834,60870.0,60847.0,0.001]
[1722706200339,0.001,60854.0,60847.0,0.001]
[1722706200552,0.164336,60851.0,60847.0,0.001]
[1722706200772,0.164336,60851.0,60844.0,0.164353]
[1722706200773,0.328666,60852.0,60844.0,0.164353]
[1722706201005,0.328654,60855.0,60845.0,0.164351]
[1722706201230,0.164332,60853.0,60848.0,0.004]
[1722706201454,0.328661,60853.0,60848.0,0.004]
[1722706201665,0.1401,60852.0,60846.0,0.164348]
[1722706201873,0.001,60857.0,60847.0,0.003]
[1722706201874,0.164331,60853.0,60847.0,0.003]
[1722706202084,0.164328,60854.0,60847.0,0.167346]
[1722706202302,0.164331,60853.0,60847.0,0.003]
[1722706202526,0.07875194,60856.0,60847.0,0.003]
[1722706202739,0.164343,60848.0,60847.0,0.003]
[1722706202957,0.49303,60848.0,60847.0,0.003]
[1722706203394,0.49303,60848.0,60847.0,0.005]
[1722706203627,0.164343,60848.0,60847.0,0.005]
[1722706203847,0.164343,60848.0,60847.0,0.002]
[1722706204069,0.49303,60848.0,60847.0,0.002]
[1722706204527,0.328676,60851.0,60838.0,0.1]
[1722706204751,0.23315924,60851.0,60834.0,0.1]
[1722706204975,0.23315924,60851.0,60847.0,0.003]
[1722706204976,1.150404,60848.0,60847.0,0.003]
[1722706205194,0.23315924,60851.0,60847.0,0.005]
[1722706205195,0.0757,60851.0,60847.0,0.005]
[1722706205469,0.240036,60851.0,60845.0,0.164351]
[1722706205721,0.240036,60851.0,60843.0,0.164356]
[1722706205722,0.004,60848.0,60843.0,0.164356]
[1722706205970,0.005,60848.0,60844.0,0.164353]
[1722706206196,0.001,60848.0,60847.0,0.57179094]
[1722706206422,0.005,60848.0,60847.0,1.51963618]
[1722706206648,0.005,60848.0,60847.0,1.52163618]
[1722706207094,0.005,60848.0,60847.0,1.56943618]
[1722706207573,0.005,60848.0,60847.0,2.01561926]
[1722706207825,0.004,60848.0,60847.0,1.90486732]
[1722706208057,0.004,60848.0,60847.0,1.57617432]
[1722706208305,0.004,60848.0,60847.0,0.82129824]
[1722706208764,0.004,60848.0,60847.0,0.014]
[1722706209258,0.328669,60852.0,60843.0,0.164355]
[1722706209466,0.328655,60854.0,60846.0,0.164348]
[1722706209467,0.164331,60853.0,60846.0,0.164348]
[1722706209679,0.001,60848.0,60847.0,0.028]
[1722706209898,0.001,60848.0,60847.0,0.178346]
[1722706210333,0.166343,60848.0,60847.0,0.028]
[1722706210566,0.001,60848.0,60847.0,0.028]
[1722706210781,0.001,60848.0,60847.0,0.014]
[1722706211210,0.165343,60848.0,60847.0,0.028]
[1722706211427,0.898417,60848.0,60847.0,0.028]
[1722706211638,0.898417,60848.0,60847.0,0.014]
[1722706211853,1.227104,60848.0,60847.0,0.014]
[1722706212060,0.164365,60840.0,60833.0,0.14090909]
[1722706212270,0.328724,60842.0,60833.0,0.30529209]
[1722706212271,0.164368,60839.0,60833.0,0.30529209]
[1722706212485,0.328694,60847.0,60834.0,0.328762]
[1722706212695,0.164361,60842.0,60834.0,0.328762]
[1722706212918,0.164361,60842.0,60835.0,0.164378]
[1722706213365,0.0807,60848.0,60833.0,0.14090909]
[1722706213366,0.328727,60841.0,60833.0,0.14090909]
[1722706213574,0.0644,60840.0,60834.0,0.164381]
[1722706213793,0.164372,60838.0,60833.0,0.14090909]
[1722706214014,0.0644,60840.0,60833.0,0.30529309]
[1722706214232,0.32871,60844.0,60834.0,0.328762]
[1722706214470,0.328715,60843.0,60833.0,0.31229209]
[1722706214691,0.164362,60841.0,60834.0,0.16438]
[1722706214917,0.0644,60846.0,60834.0,0.328761]
[1722706215160,0.0757,60848.0,60835.0,0.26249856]
[1722706215374,0.0644,60851.0,60839.0,0.0478]
[1722706215583,0.164339,60850.0,60843.0,0.164356]
[1722706215818,0.228737,60851.0,60844.0,0.164353]
[1722706216248,0.0644,60851.0,60843.0,0.328711]
[1722706216462,0.00976405,60854.0,60853.0,0.49299]
[1722706216674,0.00976405,60854.0,60848.0,0.164343]
[1722706216675,0.006,60851.0,60848.0,0.164343]
[1722706216893,0.006,60851.0,60850.0,0.164338]
[1722706217119,0.164315,60859.0,60845.0,0.15745924]
[1722706217329,0.1401,60861.0,60846.0,0.123]
[1722706217568,0.164329,60854.0,60846.0,0.451695]
[1722706217812,0.164325,60855.0,60848.0,0.328685]
[1722706218022,0.164325,60855.0,60849.0,0.164339]
[1722706218270,0.07875194,60856.0,60849.0,0.01811259]
[1722706218501,0.164333,60852.0,60849.0,0.01811259]
[1722706218690,0.164347,60847.0,60841.0,0.164362]
[1722706218952,0.004,60851.0,60840.0,0.32873]
[1722706219170,0.004,60851.0,60842.0,0.01817442]
[1722706219384,0.1401,60850.0,60841.0,0.01818326]
[1722706219599,0.16436,60842.0,60837.0,0.000913]
[1722706219822,0.1401,60850.0,60837.0,0.000913]
[1722706220047,0.164362,60842.0,60837.0,0.000913]
[1722706220269,0.164362,60842.0,60838.0,0.01820976]
[1722706220484,0.164368,60839.0,60838.0,0.01365732]
[1722706220690,0.164368,60839.0,60838.0,0.01820092]
[1722706220904,0.164368,60839.0,60837.0,0.000913]
[1722706221112,0.15745924,60849.0,60838.0,0.01820976]
[1722706221324,0.164353,60845.0,60838.0,0.17802732]
[1722706221507,0.164368,60839.0,60838.0,0.01820092]
[1722706221752,0.1401,60850.0,60838.0,0.02620092]
[1722706221753,0.15745924,60849.0,60838.0,0.02620092]
[1722706221967,0.164358,60843.0,60839.0,0.01820093]
[1722706222174,0.16436,60842.0,60839.0,0.01820093]
[1722706222389,0.16436,60842.0,60837.0,0.000913]
[1722706222599,0.16436,60842.0,60840.0,0.01819209]
[1722706222859,0.1401,60850.0,60837.0,0.000913]
[1722706222860,0.1401,60850.0,60838.0,0.005]
[1722706223111,0.0757,60850.0,60841.0,0.01363744]
[1722706223329,0.164341,60849.0,60843.0,0.164356]
[1722706223540,0.164345,60848.0,60842.0,0.01817442]
[1722706223757,0.0757,60850.0,60844.0,0.01815676]
[1722706223978,0.0757,60850.0,60845.0,0.16435]
[1722706224189,0.0757,60850.0,60846.0,0.164349]
[1722706224404,0.0757,60850.0,60845.0,0.18249892]
[1722706224633,0.0757,60850.0,60845.0,0.01814792]
[1722706224634,0.164341,60849.0,60845.0,0.01814792]
[1722706225055,0.164341,60849.0,60843.0,0.164356]
[1722706225307,0.164341,60849.0,60846.0,0.01813909]
[1722706225552,0.07547318,60850.0,60839.0,0.028]
[1722706225779,0.164341,60849.0,60843.0,0.164356]
[1722706226037,0.002,60848.0,60843.0,0.164356]
[1722706226262,0.16435,60846.0,60839.0,0.187367]
[1722706226493,0.164353,60845.0,60838.0,0.328741]
[1722706226725,0.164353,60845.0,60837.0,0.000913]
[1722706226988,0.164351,60846.0,60838.0,0.328741]
[1722706227246,0.164367,60840.0,60837.0,0.000913]
[1722706227475,0.164363,60841.0,60837.0,0.000913]
[1722706227973,0.328718,60843.0,60837.0,0.000913]
[1722706228214,0.15721368,60842.0,60837.0,0.000913]
[1722706228490,0.0609,60848.0,60837.0,0.000913]
[1722706228491,0.16437,60838.0,60837.0,0.000913]
[1722706228703,0.328717,60843.0,60837.0,0.000913]
[1722706228916,0.164365,60841.0,60838.0,0.005]
[1722706229130,0.164365,60840.0,60838.0,0.002]
[1722706229345,0.328704,60845.0,60838.0,0.002]
[1722706229559,0.164363,60841.0,60838.0,0.002]
[1722706229806,0.16435,60846.0,60838.0,0.002]
[1722706230036,0.15751964,60845.0,60839.0,0.164367]
[1722706230283,0.164358,60843.0,60837.0,0.000913]
[1722706230500,0.16437,60838.0,60837.0,0.000913]
[1722706230708,0.16437,60838.0,60837.0,0.006913]
[1722706230913,0.328737,60839.0,60837.0,0.006913]
[1722706230914,0.164368,60839.0,60837.0,0.006913]
[1722706231132,0.164368,60839.0,60837.0,0.000913]
[1722706231373,0.164368,60839.0,60838.0,0.01820976]
[1722706231581,0.493104,60839.0,60838.0,0.01820976]
[1722706231797,0.16437,60838.0,60837.0,0.000913]
[1722706232221,0.328718,60843.0,60837.0,0.005913]
[1722706232431,0.164364,60841.0,60837.0,0.005913]
[1722706232644,0.164366,60840.0,60837.0,0.005913]
[1722706232862,0.164366,60840.0,60838.0,0.005]
[1722706233072,0.164367,60840.0,60837.0,0.005913]
[1722706233286,0.164366,60840.0,60837.0,0.005913]
[1722706233744,0.164366,60840.0,60837.0,0.000913]
[1722706233937,0.164366,60840.0,60837.0,0.006913]
[1722706234466,0.493111,60838.0,60837.0,0.000913]
[1722706234692,0.493111,60838.0,60837.0,0.004913]
[1722706234693,0.24597,60838.0,60837.0,0.004913]
[1722706235104,0.0816,60838.0,60837.0,0.004913]
[1722706235544,0.328727,60841.0,60837.0,0.0191316]
[1722706235545,0.164368,60839.0,60837.0,0.0191316]
[1722706235756,0.164368,60839.0,60838.0,0.01765732]
[1722706235970,0.164368,60839.0,60838.0,0.01365732]
[1722706236188,0.164368,60839.0,60838.0,0.01820976]
[1722706236399,0.16437,60839.0,60837.0,0.007913]
[1722706236603,0.16437,60838.0,60837.0,0.000913]
[1722706236836,0.16437,60838.0,60837.0,0.006913]
[1722706237278,0.16437,60838.0,60837.0,0.000913]
[1722706237468,0.493111,60838.0,60837.0,0.000913]
[1722706237674,0.493111,60838.0,60837.0,0.005913]
[1722706238106,0.16437,60838.0,60837.0,0.000913]
[1722706238326,0.493111,60838.0,60837.0,0.006913]
[1722706238749,0.493111,60838.0,60837.0,0.011913]
[1722706238960,0.328735,60840.0,60837.0,0.006913]
[1722706239175,0.3115356,60839.0,60837.0,0.006913]
[1722706239396,0.328715,60843.0,60837.0,0.013913]
[1722706239609,0.164366,60840.0,60837.0,0.013913]
[1722706239841,0.164368,60839.0,60837.0,0.006913]
[1722706240259,0.164368,60839.0,60837.0,0.010913]
[1722706240474,0.16437,60838.0,60837.0,0.010913]
[1722706240688,0.16437,60838.0,60837.0,0.004913]
[1722706240902,0.164366,60840.0,60837.0,0.004913]
[1722706241161,0.164369,60839.0,60837.0,0.008913]
[1722706241585,0.164369,60839.0,60837.0,0.000913]
[1722706241801,0.16437,60838.0,60837.0,0.005913]
[1722706242028,0.328726,60841.0,60837.0,0.005913]
[1722706242029,0.164363,60841.0,60837.0,0.005913]
[1722706242248,0.164368,60839.0,60837.0,0.005913]
[1722706243117,0.164368,60839.0,60837.0,0.011913]
[1722706243577,0.0751,60850.0,60840.0,0.0478]
[1722706243840,0.15362517,60849.0,60841.0,0.15745924]
[1722706244058,0.3287,60846.0,60837.0,0.005913]
[1722706244265,0.3287,60846.0,60837.0,0.165286]
[1722706244266,0.164358,60843.0,60837.0,0.165286]
[1722706244489,0.16437,60838.0,60837.0,0.000913]
[1722706244701,0.21668783,60842.0,60837.0,0.005913]
[1722706244702,0.0662,60842.0,60837.0,0.005913]
[1722706244926,0.16437,60838.0,60837.0,0.005913]
[1722706245138,0.64012897,60838.0,60837.0,0.008913]
[1722706245355,0.493111,60838.0,60837.0,0.005913]
[1722706245563,0.64007165,60838.0,60837.0,0.005913]
[1722706245775,0.31133065,60838.0,60837.0,0.005913]
[1722706245986,0.96881265,60838.0,60837.0,0.01457695]
[1722706246203,0.96881265,60838.0,60837.0,0.0251316]
[1722706246435,0.96881265,60838.0,60837.0,0.006913]
[1722706246648,0.96881265,60838.0,60837.0,0.0271316]
[1722706246862,0.96881265,60838.0,60837.0,0.008913]
[1722706247073,0.96881265,60838.0,60837.0,0.0251316]
[1722706247279,0.96881265,60838.0,60837.0,0.006913]
[1722706247490,0.96881265,60838.0,60837.0,0.02657695]
[1722706247748,1.26757189,60838.0,60837.0,0.012913]
[1722706247964,0.821907,60834.0,60833.0,0.14090909]
[1722706248180,2.26951446,60834.0,60833.0,0.08979291]
[1722706248417,2.26951446,60834.0,60833.0,0.06241291]
[1722706248656,2.26951446,60834.0,60819.0,0.010175]
[1722706248657,0.822097,60820.0,60819.0,0.010175]
[1722706248889,1.73705589,60820.0,60819.0,0.010175]
[1722706249895,0.78151865,60820.0,60819.0,0.010175]
[1722706250093,0.0761,60820.0,60819.0,0.012175]
[1722706250332,0.0761,60820.0,60819.0,0.176597]
[1722706250333,0.001,60820.0,60819.0,0.176597]
[1722706250530,0.001,60820.0,60819.0,0.19169736]
[1722706250758,0.001,60820.0,60819.0,0.02727536]
[1722706250970,0.165419,60820.0,60819.0,0.02827536]
[1722706251142,0.001,60820.0,60819.0,0.19269736]
[1722706251341,0.239505,60826.0,60820.0,0.164419]
[1722706251595,0.08467726,60826.0,60821.0,0.01608268]
[1722706251804,0.82207,60822.0,60821.0,0.01608268]
[1722706251952,0.493258,60820.0,60819.0,0.011175]
[1722706252164,0.493258,60820.0,60819.0,0.010175]
[1722706252366,0.164419,60820.0,60819.0,0.010175]
[1722706252592,0.493258,60820.0,60819.0,0.010175]
[1722706253117,0.493258,60820.0,60819.0,0.011175]
[1722706253118,0.888297,60820.0,60819.0,0.011175]
[1722706253456,1.292236,60820.0,60819.0,0.010175]
[1722706253670,1.59009524,60820.0,60819.0,0.010175]
[1722706253871,2.05601989,60820.0,60819.0,0.010175]
[1722706254085,1.151143,60809.0,60808.0,0.010175]
[1722706254314,2.04567848,60809.0,60808.0,0.010175]
[1722706255150,2.14567848,60809.0,60808.0,0.010175]
[1722706255573,2.15317944,60809.0,60808.0,0.010175]
[1722706255774,2.15317944,60809.0,60807.0,0.000913]
[1722706255775,1.480068,60808.0,60807.0,8.7e-05]
[1722706255999,1.86150644,60808.0,60807.0,8.7e-05]
[1722706256929,1.90165273,60808.0,60807.0,8.7e-05]
[1722706257128,1.86550644,60808.0,60807.0,0.001087]
[1722706257270,1.74152724,60808.0,60807.0,0.001087]
[1722706258063,1.9875489,60808.0,60807.0,0.001087]
[1722706258258,1.81662724,60808.0,60807.0,0.001087]
[1722706258550,1.48772324,60808.0,60807.0,0.001087]
[1722706258736,0.90836,60808.0,60807.0,0.002087]
[1722706259898,0.250552,60808.0,60807.0,0.002087]
[1722706260049,0.90836,60808.0,60807.0,0.002087]
[1722706260254,0.579456,60808.0,60807.0,0.002087]
[1722706260457,0.26056829,60808.0,60807.0,0.002087]
[1722706260653,0.007,60808.0,60807.0,0.001087]
[1722706261033,0.16445,60809.0,60807.0,8.7e-05]
[1722706261234,0.164452,60808.0,60807.0,0.03265409]
[1722706261440,0.170452,60808.0,60807.0,0.01744762]
[1722706262066,0.01,60808.0,60807.0,0.01744762]
[1722706262468,0.174452,60808.0,60807.0,0.03365409]
[1722706262674,0.01,60808.0,60807.0,0.03365409]
[1722706263080,0.174452,60808.0,60807.0,0.03365409]
[1722706263280,0.83226,60808.0,60807.0,0.03365409]
[1722706263477,0.503356,60808.0,60807.0,0.03365409]
[1722706263630,0.503356,60808.0,60807.0,0.01744762]
[1722706264041,0.01,60808.0,60807.0,0.01744762]
[1722706264460,0.01,60808.0,60807.0,0.03365409]
[1722706264677,0.01,60808.0,60807.0,0.90372609]
[1722706264891,0.01,60808.0,60807.0,1.39009433]
[1722706265093,0.01,60808.0,60807.0,1.06118533]
[1722706265507,0.006,60808.0,60807.0,1.06118533]
[1722706265716,0.164427,60818.0,60812.0,0.164439]
[1722706265939,0.164432,60816.0,60813.0,0.0177278]
[1722706266148,0.328845,60819.0,60813.0,0.0177278]
[1722706266350,0.164429,60817.0,60813.0,0.01615341]
[1722706266566,0.164423,60819.0,60813.0,0.164438]
[1722706266841,0.42159285,60822.0,60819.0,0.16442]
[1722706266842,0.00985985,60822.0,60819.0,0.16442]
[1722706267054,0.164406,60825.0,60820.0,0.00157439]
[1722706267261,0.164406,60825.0,60820.0,0.01766591]
[1722706267457,0.42142434,60827.0,60820.0,0.00157439]
[1722706267458,0.164416,60821.0,60820.0,0.00157439]
[1722706267669,0.493258,60820.0,60819.0,0.01636062]
[1722706267875,1.45549524,60820.0,60819.0,0.01636062]
[1722706268093,1.89433424,60820.0,60819.0,0.00712053]
[1722706268307,1.151164,60808.0,60807.0,0.014087]
[1722706268528,0.493356,60808.0,60807.0,0.02120753]
[1722706268744,0.82226,60808.0,60807.0,0.00720753]
[1722706269170,1.298264,60808.0,60807.0,0.00720753]
[1722706269373,0.96936,60808.0,60807.0,0.00720753]
[1722706269783,0.164444,60811.0,60807.0,0.00720753]
[1722706270043,0.15745924,60819.0,60807.0,0.00720753]
[1722706270044,0.1471,60818.0,60808.0,0.00157439]
[1722706270252,0.328881,60813.0,60808.0,0.00157439]
[1722706270473,0.164449,60809.0,60808.0,0.00157439]
[1722706270687,0.79790624,60809.0,60808.0,0.00157439]
[1722706270894,1.12680424,60809.0,60808.0,0.00157439]
[1722706271095,0.82226,60808.0,60807.0,0.007087]
[1722706271302,1.47952823,60808.0,60807.0,0.007087]
[1722706271509,2.05553223,60808.0,60807.0,8.7e-05]
[1722706271742,2.0555533,60808.0,60807.0,0.003087]
[1722706272146,2.0555533,60808.0,60807.0,0.004087]
[1722706272361,0.4283853,60808.0,60800.0,0.000953]
[1722706272578,0.4283853,60808.0,60799.0,0.14614325]
[1722706272579,0.65052,60800.0,60799.0,0.05964431]
[1722706272785,1.9557463,60800.0,60799.0,0.00294787]
[1722706273225,1.7267993,60800.0,60799.0,0.00294787]
[1722706273427,1.55587324,60800.0,60799.0,0.00294787]
[1722706273854,1.56287324,60800.0,60799.0,0.00394787]
[1722706274540,1.73380929,60800.0,60799.0,0.00394787]
[1722706274750,1.73380929,60800.0,60799.0,0.00494787]
[1722706274985,1.74780929,60800.0,60799.0,0.00494787]
[1722706275193,1.74780929,60800.0,60799.0,0.00294787]
[1722706275194,1.74080929,60800.0,60799.0,0.00294787]
[1722706275611,1.74080929,60800.0,60799.0,0.00494787]
[1722706275612,2.10475629,60800.0,60799.0,0.00494787]
[1722706275817,2.10475629,60800.0,60799.0,0.002]
[1722706275818,2.09475629,60800.0,60799.0,0.002]
[1722706276013,1.75480929,60800.0,60799.0,0.001]
[1722706276436,1.76580929,60800.0,60799.0,0.002]
[1722706276642,2.09475629,60800.0,60799.0,0.002]
[1722706277087,2.0947687,60800.0,60799.0,0.002]
[1722706277292,0.832395,60798.0,60797.0,0.010175]
[1722706277513,1.6368607,60798.0,60797.0,0.010175]
[1722706277738,0.822475,60792.0,60791.0,0.01729553]
[1722706277962,2.1315627,60792.0,60791.0,0.010175]
[1722706278232,2.2315627,60792.0,60791.0,0.010175]
[1722706278941,1.6269727,60792.0,60791.0,0.01729553]
[1722706279635,1.6399796,60792.0,60791.0,0.01829553]
[1722706280067,1.6269796,60792.0,60791.0,0.01729553]
[1722706280935,1.15453036,60792.0,60791.0,0.01729553]
[1722706281151,0.164495,60792.0,60791.0,0.01729553]
[1722706281392,0.503485,60792.0,60791.0,0.01729553]
[1722706281624,0.832475,60792.0,60791.0,0.01729553]
[1722706281839,1.01062541,60792.0,60791.0,0.01729553]
[1722706282121,1.16115617,60792.0,60791.0,0.01729553]
[1722706282351,1.16515617,60792.0,60791.0,0.01729553]
[1722706282561,1.16815617,60792.0,60791.0,0.01729553]
[1722706282775,0.83616617,60792.0,60791.0,0.01729553]
[1722706282997,0.83616617,60792.0,60791.0,0.010175]
[1722706282998,0.004,60792.0,60791.0,0.010175]
[1722706283243,0.004,60792.0,60791.0,0.02652302]
[1722706283244,0.497485,60792.0,60791.0,0.02652302]
[1722706283455,0.497485,60792.0,60791.0,0.010175]
[1722706283456,0.493485,60792.0,60791.0,0.010175]
[1722706283661,1.151465,60792.0,60791.0,0.010175]
[1722706283866,0.822475,60792.0,60791.0,0.010175]
[1722706284535,1.215065,60792.0,60791.0,0.010175]
[1722706284746,0.886075,60792.0,60791.0,0.010175]
[1722706284945,0.893075,60792.0,60791.0,0.010175]
[1722706285159,1.05853424,60792.0,60791.0,0.010175]
[1722706285367,1.38052424,60792.0,60791.0,0.010175]
[1722706285780,1.55547245,60792.0,60791.0,0.010175]
[1722706286196,1.63277245,60792.0,60791.0,0.010175]
[1722706286607,1.63177245,60792.0,60791.0,0.010175]
[1722706287217,1.23918245,60792.0,60791.0,0.010175]
[1722706287435,0.98993424,60792.0,60791.0,0.010175]
[1722706288102,0.98293424,60792.0,60791.0,0.010175]
[1722706288352,0.99393424,60792.0,60791.0,0.010175]
[1722706288915,1.31192424,60792.0,60791.0,0.010175]
[1722706289142,1.48286835,60792.0,60791.0,0.010175]
[1722706289381,1.78236835,60792.0,60791.0,0.010175]
[1722706289663,1.151615,60784.0,60783.0,0.010186]
[1722706289868,1.95397946,60784.0,60783.0,0.010186]
[1722706290116,1.78300724,60784.0,60783.0,0.010186]
[1722706290338,1.95398293,60784.0,60783.0,0.010186]
[1722706291193,1.95398311,60784.0,60783.0,0.010186]
[1722706291404,1.95398311,60784.0,60783.0,0.00630926]
[1722706291405,2.29301611,60784.0,60783.0,0.00630926]
[1722706291788,2.29301611,60784.0,60782.0,0.00571446]
[1722706291789,1.625575,60783.0,60782.0,0.00571446]
[1722706292003,2.05402438,60783.0,60782.0,0.00571446]
[1722706292675,1.07488714,60783.0,60782.0,0.00571446]
[1722706293095,1.40392614,60783.0,60782.0,0.00571446]
[1722706293306,1.246936,60783.0,60782.0,0.00571446]
[1722706293733,0.917897,60783.0,60782.0,0.00571446]
[1722706293977,1.07535624,60783.0,60782.0,0.00571446]
[1722706294202,1.40439524,60783.0,60782.0,0.00571446]
[1722706294418,1.07535624,60783.0,60782.0,0.00571446]
[1722706294627,1.08835624,60783.0,60782.0,0.00571446]
[1722706295306,0.849597,60783.0,60782.0,0.00571446]
[1722706296612,0.027,60783.0,60782.0,0.00571446]
[1722706296832,0.027,60783.0,60782.0,0.06994213]
[1722706297043,0.027,60783.0,60782.0,0.06422767]
[1722706297258,0.849597,60783.0,60782.0,0.01642767]
[1722706297496,1.49450004,60783.0,60782.0,0.01304465]
[1722706297710,0.493575,60781.0,60780.0,0.010175]
[1722706297924,0.493575,60781.0,60780.0,0.01588946]
[1722706297925,0.822625,60781.0,60780.0,0.01588946]
[1722706298134,1.151675,60781.0,60780.0,0.01588946]
[1722706298335,1.32264302,60781.0,60780.0,0.01588946]
[1722706298771,0.99359302,60781.0,60780.0,0.01588946]
[1722706298981,0.99659302,60781.0,60780.0,0.01588946]
[1722706299205,1.32564302,60781.0,60780.0,0.01588946]
[1722706299616,1.48310226,60781.0,60780.0,0.01588946]
[1722706299830,1.65890226,60781.0,60780.0,0.01588946]
[1722706300476,2.28661177,60781.0,60780.0,0.010175]
[1722706300682,2.28661177,60781.0,60779.0,0.010186]
[1722706300683,1.151692,60780.0,60779.0,0.010186]
[1722706300895,2.01653377,60780.0,60779.0,0.010186]
[1722706301105,5.01653377,60780.0,60779.0,0.010186]
[1722706301561,5.01656872,60780.0,60779.0,0.010186]
[1722706301791,5.01624036,60780.0,60779.0,0.010186]
[1722706302011,5.10343684,60780.0,60779.0,0.010186]
[1722706302220,5.10343684,60780.0,60776.0,0.010186]
[1722706302221,1.568019,60777.0,60776.0,0.010186]
[1722706302431,2.38727984,60777.0,60776.0,0.00159693]
[1722706302683,2.48727984,60777.0,60776.0,0.00159693]
[1722706302894,2.3566398,60777.0,60776.0,0.00159693]
[1722706303117,2.6957108,60777.0,60776.0,0.00019217]
[1722706303325,0.68738984,60777.0,60772.0,0.00571446]
[1722706303534,0.669489,60767.0,60757.0,0.0002722]
[1722706303746,1.53410484,60767.0,60757.0,0.0002722]
[1722706303953,2.19235684,60767.0,60757.0,0.0002722]
[1722706305425,2.66338284,60767.0,60757.0,0.0002722]
[1722706305640,2.90358284,60767.0,60757.0,0.0002722]
[1722706305861,3.26373027,60767.0,60766.0,0.03917979]
[1722706306075,0.01,60753.0,60748.0,0.47251164]
[1722706306292,0.493834,60749.0,60748.0,0.47251164]
[1722706306499,0.15745924,60752.0,60747.0,0.010186]
[1722706306500,0.493842,60748.0,60747.0,0.010186]
[1722706306711,0.98052924,60748.0,60747.0,0.010186]
[1722706307147,1.30975724,60748.0,60747.0,0.010186]
[1722706308012,1.31975724,60748.0,60747.0,0.010186]
[1722706308230,1.56165724,60748.0,60747.0,0.010186]
[1722706308453,0.01,60746.0,60732.0,0.15661157]
[1722706308682,1.82500524,60739.0,60732.0,0.15661157]
[1722706308925,2.1379897,60739.0,60738.0,1e-08]
[1722706309335,2.1379897,60739.0,60732.0,0.15661157]
[1722706309336,1.162585,60733.0,60732.0,0.15661157]
[1722706309339,1.569095,60733.0,60732.0,0.15661157]
[1722706309546,2.66360064,60733.0,60732.0,0.02485535]